[Event "Titled Tuesday Blitz April 19 Late 2022"]
[White "Prohorov, Olexandr"]
[Black "Kaganskiy, Gleb"]
[WhiteFideId "14105578"]
[BlackFideId "4132025"]
[WhiteElo "1993"]
[BlackElo "2165"]
[Result "1-0"]
[Round "05"]
[TimeControl "180+1"]
[Date "2022.04.19"]
[WhiteClock "0:00:06"]
[BlackClock "0:00:13"]

1. e4 {[%clk 0:02:59]}  d6 {[%clk 0:02:55]} 2. d4 {[%clk 0:02:58]}  Nf6 {[%clk 0:02:54]} 3. Nc3 {[%clk 0:02:59]}  e5 {[%clk 0:02:54]} 4. Nf3 {[%clk 0:02:58]}  Nbd7 {[%clk 0:02:53]} 5. Bc4 {[%clk 0:02:58]}  Be7 {[%clk 0:02:52]} 6. g4 {[%clk 0:02:53]}  Nxg4 {[%clk 0:02:47]} 7. Rg1 {[%clk 0:02:53]}  Nb6 {[%clk 0:02:46]} 8. Bb3 {[%clk 0:02:26]}  Bh4 {[%clk 0:02:44]} 9. Nxh4 {[%clk 0:02:20]}  Qxh4 {[%clk 0:02:35]} 10. Qf3 {[%clk 0:02:21]}  O-O {[%clk 0:02:30]} 11. dxe5 {[%clk 0:02:11]}  Nxe5 {[%clk 0:02:26]} 12. Qg3 {[%clk 0:02:10]}  Qxg3 {[%clk 0:02:24]} 13. Rxg3 {[%clk 0:02:09]}  Be6 {[%clk 0:02:21]} 14. Nb5 {[%clk 0:01:59]}  Rfc8 {[%clk 0:02:03]} 15. Bh6 {[%clk 0:01:52]}  g6 {[%clk 0:02:02]} 16. O-O-O {[%clk 0:01:44]}  a6 {[%clk 0:01:59]} 17. Nc3 {[%clk 0:01:36]}  Bxb3 {[%clk 0:01:57]} 18. axb3 {[%clk 0:01:36]}  Re8 {[%clk 0:01:54]} 19. Be3 {[%clk 0:01:28]}  Ned7 {[%clk 0:01:48]} 20. f3 {[%clk 0:01:17]}  a5 {[%clk 0:01:45]} 21. Bd4 {[%clk 0:01:10]}  a4 {[%clk 0:01:43]} 22. Bxb6 {[%clk 0:01:04]}  Nxb6 {[%clk 0:01:42]} 23. bxa4 {[%clk 0:01:00]}  Kg7 {[%clk 0:01:21]} 24. b3 {[%clk 0:01:00]}  Ra5 {[%clk 0:01:16]} 25. Nb5 {[%clk 0:00:54]}  Re7 {[%clk 0:01:16]} 26. Kb2 {[%clk 0:00:49]}  h5 {[%clk 0:01:06]} 27. h4 {[%clk 0:00:49]}  Ra8 {[%clk 0:00:54]} 28. f4 {[%clk 0:00:49]}  Rxe4 {[%clk 0:00:50]} 29. Nxc7 {[%clk 0:00:43]}  Rc8 {[%clk 0:00:49]} 30. Nb5 {[%clk 0:00:40]}  Re2 {[%clk 0:00:47]} 31. Nc3 {[%clk 0:00:35]}  Rf2 {[%clk 0:00:45]} 32. Rxd6 {[%clk 0:00:35]}  Rc6 {[%clk 0:00:41]} 33. Rgd3 {[%clk 0:00:31]}  Rxf4 {[%clk 0:00:39]} 34. Rxc6 {[%clk 0:00:28]}  bxc6 {[%clk 0:00:38]} 35. a5 {[%clk 0:00:29]}  Nc8 {[%clk 0:00:38]} 36. Rd8 {[%clk 0:00:24]}  Na7 {[%clk 0:00:37]} 37. a6 {[%clk 0:00:25]}  Rf5 {[%clk 0:00:35]} 38. Ra8 {[%clk 0:00:21]}  Nb5 {[%clk 0:00:31]} 39. Nxb5 {[%clk 0:00:20]}  Rxb5 {[%clk 0:00:30]} 40. Rc8 {[%clk 0:00:17]}  Ra5 {[%clk 0:00:28]} 41. Rxc6 {[%clk 0:00:16]}  g5 {[%clk 0:00:28]} 42. hxg5 {[%clk 0:00:12]}  h4 {[%clk 0:00:22]} 43. b4 {[%clk 0:00:11]}  Ra4 {[%clk 0:00:17]} 44. Kb3 {[%clk 0:00:11]}  Ra1 {[%clk 0:00:15]} 45. b5 {[%clk 0:00:09]}  Rb1+ {[%clk 0:00:15]} 46. Kc4 {[%clk 0:00:08]}  h3 {[%clk 0:00:14]} 47. Rh6 {[%clk 0:00:08]}  Rc1 {[%clk 0:00:14]} 48. c3 {[%clk 0:00:07]}  Rg1 {[%clk 0:00:11]} 49. Rxh3 {[%clk 0:00:07]}  Rg4+ {[%clk 0:00:12]} 50. Kb3 {[%clk 0:00:06]}  Rxg5 {[%clk 0:00:13]} 51. Kb4 {[%clk 0:00:05]}  Rg4+ {[%clk 0:00:12]} 52. c4 {[%clk 0:00:06]}  Rg1 {[%clk 0:00:12]} 53. a7 {[%clk 0:00:06]}  Ra1 {[%clk 0:00:11]} 54. b6 {[%clk 0:00:06]}  Rb1+ {[%clk 0:00:12]} 55. Kc5 {[%clk 0:00:06]}  Ra1 {[%clk 0:00:12]} 56. b7 {[%clk 0:00:06]}  Rxa7 {[%clk 0:00:12]} 57. b8=Q {[%clk 0:00:07]}  Ra5+ {[%clk 0:00:13]} 58. Kb4 {[%clk 0:00:06]}  Rg5 {[%clk 0:00:14]} 59. Qd6 {[%clk 0:00:06]}  Rg6 {[%clk 0:00:14]} 60. Qe5+ {[%clk 0:00:06]}  f6 {[%clk 0:00:13]} 61. Qe7+ {[%clk 0:00:06]}  Kg8 {[%clk 0:00:14]} 62. Rh7 {[%clk 0:00:06]}  Rg4 {[%clk 0:00:13]} 63. Qf7# {[%clk 0:00:06]} 1-0


[Site "https://www.chess.com"]

[Event "Titled Tuesday Blitz April 19 Late 2022"]
[White "Rasulov, Vugar"]
[Black "Koelle, Tobias"]
[WhiteFideId "13402390"]
[BlackFideId "16207378"]
[WhiteElo "2560"]
[BlackElo "2541"]
[Result "1-0"]
[Round "05"]
[TimeControl "180+1"]
[Date "2022.04.19"]
[WhiteClock "0:02:40"]
[BlackClock "0:02:04"]

1. d4 {[%clk 0:03:00]}  Nf6 {[%clk 0:02:59]} 2. c4 {[%clk 0:03:01]}  g6 {[%clk 0:02:57]} 3. Nc3 {[%clk 0:03:01]}  Bg7 {[%clk 0:02:57]} 4. e4 {[%clk 0:03:01]}  d6 {[%clk 0:02:58]} 5. f3 {[%clk 0:03:02]}  O-O {[%clk 0:02:58]} 6. Be3 {[%clk 0:03:02]}  a6 {[%clk 0:02:53]} 7. Qd2 {[%clk 0:03:02]}  Nc6 {[%clk 0:02:52]} 8. Nge2 {[%clk 0:02:56]}  Rb8 {[%clk 0:02:49]} 9. h4 {[%clk 0:02:56]}  b5 {[%clk 0:02:48]} 10. h5 {[%clk 0:02:54]}  Nxh5 {[%clk 0:02:43]} 11. g4 {[%clk 0:02:53]}  Nf6 {[%clk 0:02:41]} 12. Bh6 {[%clk 0:02:53]}  e5 {[%clk 0:02:35]} 13. Bxg7 {[%clk 0:02:50]}  Kxg7 {[%clk 0:02:36]} 14. Qh6+ {[%clk 0:02:50]}  Kg8 {[%clk 0:02:35]} 15. Nd5 {[%clk 0:02:47]}  Re8 {[%clk 0:02:34]} 16. g5 {[%clk 0:02:38]}  Nxd5 {[%clk 0:02:25]} 17. cxd5 {[%clk 0:02:39]}  Ne7 {[%clk 0:02:04]} 18. Qxh7+ {[%clk 0:02:39]}  Kf8 {[%clk 0:02:04]} 19. Qh6+ {[%clk 0:02:40]} 1-0


[Site "https://www.chess.com"]

[Event "Titled Tuesday Blitz April 19 Late 2022"]
[White "Rustemov, Alexander"]
[Black "Caruana, Fabiano"]
[WhiteFideId "4119002"]
[BlackFideId "2020009"]
[WhiteElo "2727"]
[BlackElo "2744"]
[Result "0-1"]
[Round "05"]
[TimeControl "180+1"]
[Date "2022.04.19"]
[WhiteClock "0:00:21"]
[BlackClock "0:00:22"]

1. d4 {[%clk 0:03:00]}  d5 {[%clk 0:03:00]} 2. c4 {[%clk 0:03:01]}  e6 {[%clk 0:03:00]} 3. Nc3 {[%clk 0:03:01]}  Nf6 {[%clk 0:03:01]} 4. cxd5 {[%clk 0:03:01]}  exd5 {[%clk 0:03:01]} 5. Bg5 {[%clk 0:03:01]}  c6 {[%clk 0:03:00]} 6. e3 {[%clk 0:03:01]}  Be7 {[%clk 0:03:00]} 7. Bd3 {[%clk 0:03:01]}  O-O {[%clk 0:03:01]} 8. Qc2 {[%clk 0:03:00]}  h6 {[%clk 0:02:59]} 9. Bh4 {[%clk 0:02:58]}  Ne8 {[%clk 0:02:59]} 10. Bxe7 {[%clk 0:02:55]}  Qxe7 {[%clk 0:02:59]} 11. Nf3 {[%clk 0:02:53]}  Nd7 {[%clk 0:02:51]} 12. O-O {[%clk 0:02:52]}  Nd6 {[%clk 0:02:51]} 13. Rab1 {[%clk 0:02:51]}  Nf6 {[%clk 0:02:48]} 14. b4 {[%clk 0:02:47]}  a6 {[%clk 0:02:40]} 15. a4 {[%clk 0:02:46]}  b5 {[%clk 0:02:39]} 16. Ne5 {[%clk 0:02:45]}  Bd7 {[%clk 0:02:38]} 17. Ne2 {[%clk 0:02:27]}  Nc4 {[%clk 0:02:32]} 18. Nxd7 {[%clk 0:02:18]}  Nxd7 {[%clk 0:02:25]} 19. Ra1 {[%clk 0:02:16]}  Qxb4 {[%clk 0:02:24]} 20. Nf4 {[%clk 0:02:13]}  Qd6 {[%clk 0:02:22]} 21. Be2 {[%clk 0:02:10]}  Ndb6 {[%clk 0:02:20]} 22. a5 {[%clk 0:02:07]}  Nd7 {[%clk 0:02:17]} 23. Nd3 {[%clk 0:02:07]}  Rfe8 {[%clk 0:02:09]} 24. Qc3 {[%clk 0:02:05]}  Nf6 {[%clk 0:02:09]} 25. Qb4 {[%clk 0:02:03]}  Qc7 {[%clk 0:02:04]} 26. Rfc1 {[%clk 0:02:00]}  Ne4 {[%clk 0:02:02]} 27. g3 {[%clk 0:01:54]}  Re6 {[%clk 0:01:59]} 28. Bf3 {[%clk 0:01:53]}  Ng5 {[%clk 0:01:40]} 29. Bg2 {[%clk 0:01:53]}  Rf6 {[%clk 0:01:40]} 30. h4 {[%clk 0:01:46]}  Nf3+ {[%clk 0:01:38]} 31. Bxf3 {[%clk 0:01:45]}  Rxf3 {[%clk 0:01:38]} 32. Qe1 {[%clk 0:01:15]}  Re8 {[%clk 0:01:35]} 33. Qe2 {[%clk 0:01:04]}  Rf6 {[%clk 0:01:23]} 34. Re1 {[%clk 0:01:04]}  Qc8 {[%clk 0:01:13]} 35. Kg2 {[%clk 0:01:03]}  g6 {[%clk 0:01:07]} 36. h5 {[%clk 0:01:03]}  g5 {[%clk 0:01:06]} 37. Nc5 {[%clk 0:01:02]}  g4 {[%clk 0:01:04]} 38. Rh1 {[%clk 0:00:59]}  Rf3 {[%clk 0:01:03]} 39. Raf1 {[%clk 0:00:41]}  Qf5 {[%clk 0:00:54]} 40. Rh4 {[%clk 0:00:36]}  Kh8 {[%clk 0:00:36]} 41. Rxg4 {[%clk 0:00:34]}  Nxe3+ {[%clk 0:00:36]} 42. fxe3 {[%clk 0:00:34]}  Rxf1 {[%clk 0:00:37]} 43. e4 {[%clk 0:00:31]}  dxe4 {[%clk 0:00:28]} 44. Nxe4 {[%clk 0:00:31]}  Re1 {[%clk 0:00:22]} 45. Qxe1 {[%clk 0:00:27]}  Qxg4 {[%clk 0:00:22]} 46. Nf6 {[%clk 0:00:20]}  Rxe1 {[%clk 0:00:22]} 47. Nxg4 {[%clk 0:00:21]}  b4 {[%clk 0:00:22]} 0-1


[Site "https://www.chess.com"]

[Event "Titled Tuesday Blitz April 19 Late 2022"]
[White "Sarana, Alexey"]
[Black "Keymer, Vincent"]
[WhiteFideId "24133795"]
[BlackFideId "12940690"]
[WhiteElo "2666"]
[BlackElo "2557"]
[Result "1-0"]
[Round "05"]
[TimeControl "180+1"]
[Date "2022.04.19"]
[WhiteClock "0:00:03"]
[BlackClock "0:00:04"]

1. d4 {[%clk 0:02:51]}  Nf6 {[%clk 0:02:59]} 2. c4 {[%clk 0:02:51]}  e6 {[%clk 0:03:00]} 3. Nc3 {[%clk 0:02:49]}  Bb4 {[%clk 0:02:59]} 4. Qc2 {[%clk 0:02:48]}  c5 {[%clk 0:02:54]} 5. dxc5 {[%clk 0:02:48]}  O-O {[%clk 0:02:54]} 6. a3 {[%clk 0:02:45]}  Bxc5 {[%clk 0:02:53]} 7. Nf3 {[%clk 0:02:43]}  d5 {[%clk 0:02:28]} 8. Bg5 {[%clk 0:02:40]}  Be7 {[%clk 0:02:07]} 9. e3 {[%clk 0:02:39]}  Nc6 {[%clk 0:01:48]} 10. Rd1 {[%clk 0:02:38]}  Qa5 {[%clk 0:01:47]} 11. Bd3 {[%clk 0:02:38]}  h6 {[%clk 0:01:41]} 12. Bh4 {[%clk 0:02:17]}  Rd8 {[%clk 0:01:31]} 13. O-O {[%clk 0:02:15]}  dxc4 {[%clk 0:01:28]} 14. Bxc4 {[%clk 0:02:15]}  Bd7 {[%clk 0:01:28]} 15. e4 {[%clk 0:01:59]}  Be8 {[%clk 0:01:18]} 16. Qe2 {[%clk 0:01:34]}  Ne5 {[%clk 0:00:46]} 17. Nxe5 {[%clk 0:01:07]}  Qxe5 {[%clk 0:00:47]} 18. f4 {[%clk 0:01:07]}  Qc5+ {[%clk 0:00:46]} 19. Bf2 {[%clk 0:01:07]}  Qc7 {[%clk 0:00:43]} 20. e5 {[%clk 0:01:06]}  Ng4 {[%clk 0:00:36]} 21. Rxd8 {[%clk 0:00:45]}  Rxd8 {[%clk 0:00:34]} 22. Kh1 {[%clk 0:00:18]}  Nxf2+ {[%clk 0:00:27]} 23. Rxf2 {[%clk 0:00:19]}  Rd4 {[%clk 0:00:26]} 24. Bd3 {[%clk 0:00:14]}  Bxa3 {[%clk 0:00:17]} 25. Rf3 {[%clk 0:00:14]}  Be7 {[%clk 0:00:15]} 26. h3 {[%clk 0:00:13]}  a6 {[%clk 0:00:15]} 27. Ne4 {[%clk 0:00:12]}  Bc6 {[%clk 0:00:15]} 28. Kh2 {[%clk 0:00:12]}  Qd7 {[%clk 0:00:11]} 29. Rg3 {[%clk 0:00:11]}  Bxe4 {[%clk 0:00:09]} 30. Bxe4 {[%clk 0:00:12]}  Qa4 {[%clk 0:00:10]} 31. b3 {[%clk 0:00:08]}  Qb4 {[%clk 0:00:08]} 32. Re3 {[%clk 0:00:05]}  Bc5 {[%clk 0:00:06]} 33. f5 {[%clk 0:00:03]}  Rd2 {[%clk 0:00:05]} 34. Qg4 {[%clk 0:00:02]}  Bxe3 {[%clk 0:00:04]} 35. fxe6 {[%clk 0:00:02]}  Qe7 {[%clk 0:00:02]} 36. Bf5 {[%clk 0:00:02]}  fxe6 {[%clk 0:00:02]} 37. Bxe6+ {[%clk 0:00:02]}  Kh8 {[%clk 0:00:02]} 38. Bc4 {[%clk 0:00:02]}  Bg5 {[%clk 0:00:02]} 39. Kg3 {[%clk 0:00:02]}  Rd8 {[%clk 0:00:03]} 40. Qe4 {[%clk 0:00:03]}  Bh4+ {[%clk 0:00:03]} 41. Kh2 {[%clk 0:00:03]}  Bg5 {[%clk 0:00:03]} 42. Bd3 {[%clk 0:00:03]}  Bf6 {[%clk 0:00:04]} 43. Qh7# {[%clk 0:00:03]} 1-0


[Site "https://www.chess.com"]

[Event "Titled Tuesday Blitz April 19 Late 2022"]
[White "Sernecki, Franciszek"]
[Black "Zong, Davis"]
[WhiteFideId "1169297"]
[BlackFideId "30903955"]
[WhiteElo "2165"]
[BlackElo "2061"]
[Result "1-0"]
[Round "05"]
[TimeControl "180+1"]
[Date "2022.04.19"]
[WhiteClock "0:00:05"]
[BlackClock "0:00:06"]

1. d4 {[%clk 0:03:00]}  d5 {[%clk 0:02:59]} 2. c4 {[%clk 0:02:59]}  c6 {[%clk 0:02:59]} 3. Nc3 {[%clk 0:02:58]}  Nf6 {[%clk 0:03:00]} 4. e3 {[%clk 0:02:57]}  e6 {[%clk 0:02:55]} 5. Nf3 {[%clk 0:02:57]}  Nbd7 {[%clk 0:02:55]} 6. Bd3 {[%clk 0:02:56]}  dxc4 {[%clk 0:02:55]} 7. Bxc4 {[%clk 0:02:57]}  b5 {[%clk 0:02:56]} 8. Bd3 {[%clk 0:02:57]}  Bb7 {[%clk 0:02:57]} 9. O-O {[%clk 0:02:56]}  a6 {[%clk 0:02:55]} 10. e4 {[%clk 0:02:51]}  c5 {[%clk 0:02:39]} 11. d5 {[%clk 0:02:49]}  exd5 {[%clk 0:02:23]} 12. exd5 {[%clk 0:02:42]}  Be7 {[%clk 0:02:08]} 13. d6 {[%clk 0:02:37]}  Bxd6 {[%clk 0:02:04]} 14. Bxb5 {[%clk 0:02:28]}  Be7 {[%clk 0:01:54]} 15. Bc4 {[%clk 0:01:46]}  O-O {[%clk 0:01:54]} 16. Bg5 {[%clk 0:01:44]}  h6 {[%clk 0:01:45]} 17. Bh4 {[%clk 0:01:44]}  Qc7 {[%clk 0:01:44]} 18. Re1 {[%clk 0:01:33]}  Nb6 {[%clk 0:01:39]} 19. Bg3 {[%clk 0:01:11]}  Qd8 {[%clk 0:01:18]} 20. Qxd8 {[%clk 0:00:49]}  Bxd8 {[%clk 0:01:18]} 21. Bb3 {[%clk 0:00:46]}  Bxf3 {[%clk 0:00:52]} 22. gxf3 {[%clk 0:00:47]}  Re8 {[%clk 0:00:42]} 23. Ne4 {[%clk 0:00:42]}  Be7 {[%clk 0:00:38]} 24. Rac1 {[%clk 0:00:38]}  Rac8 {[%clk 0:00:25]} 25. Nxf6+ {[%clk 0:00:29]}  Bxf6 {[%clk 0:00:20]} 26. Rxe8+ {[%clk 0:00:28]}  Rxe8 {[%clk 0:00:21]} 27. Rxc5 {[%clk 0:00:27]}  Bxb2 {[%clk 0:00:21]} 28. Rc7 {[%clk 0:00:25]}  Rf8 {[%clk 0:00:15]} 29. Bd6 {[%clk 0:00:17]}  Rd8 {[%clk 0:00:14]} 30. Bc5 {[%clk 0:00:10]}  Nd5 {[%clk 0:00:13]} 31. Ra7 {[%clk 0:00:07]}  Nf4 {[%clk 0:00:09]} 32. Rxf7 {[%clk 0:00:05]}  Nh3+ {[%clk 0:00:06]} 33. Kg2 {[%clk 0:00:05]} 1-0


[Site "https://www.chess.com"]

[Event "Titled Tuesday Blitz April 19 Late 2022"]
[White "Sjugirov, Sanan"]
[Black "Nazaretyan, Tigran"]
[WhiteFideId "4189302"]
[BlackFideId "24162345"]
[WhiteElo "2602"]
[BlackElo "2225"]
[Result "1-0"]
[Round "05"]
[TimeControl "180+1"]
[Date "2022.04.19"]
[WhiteClock "0:01:28"]
[BlackClock "0:00:02"]

1. d4 {[%clk 0:03:00]}  Nf6 {[%clk 0:02:58]} 2. Nf3 {[%clk 0:03:01]}  c5 {[%clk 0:02:56]} 3. d5 {[%clk 0:03:01]}  e6 {[%clk 0:02:51]} 4. c4 {[%clk 0:02:58]}  exd5 {[%clk 0:02:50]} 5. cxd5 {[%clk 0:02:59]}  d6 {[%clk 0:02:50]} 6. Nc3 {[%clk 0:02:59]}  g6 {[%clk 0:02:51]} 7. h3 {[%clk 0:02:49]}  Bg7 {[%clk 0:02:48]} 8. e4 {[%clk 0:02:49]}  O-O {[%clk 0:02:47]} 9. Be3 {[%clk 0:02:49]}  Re8 {[%clk 0:02:38]} 10. Bd3 {[%clk 0:02:49]}  Na6 {[%clk 0:02:29]} 11. O-O {[%clk 0:02:48]}  Nc7 {[%clk 0:02:30]} 12. a4 {[%clk 0:02:42]}  b6 {[%clk 0:02:26]} 13. Re1 {[%clk 0:02:40]}  Ba6 {[%clk 0:02:24]} 14. Bf4 {[%clk 0:02:26]}  Bxd3 {[%clk 0:02:17]} 15. Qxd3 {[%clk 0:02:27]}  Nh5 {[%clk 0:02:12]} 16. Bh2 {[%clk 0:02:26]}  a6 {[%clk 0:02:01]} 17. e5 {[%clk 0:02:22]}  dxe5 {[%clk 0:01:56]} 18. Nxe5 {[%clk 0:02:21]}  Nf6 {[%clk 0:01:17]} 19. Rad1 {[%clk 0:02:06]}  b5 {[%clk 0:01:15]} 20. axb5 {[%clk 0:02:02]}  Nxb5 {[%clk 0:01:11]} 21. Nxb5 {[%clk 0:02:00]}  axb5 {[%clk 0:01:11]} 22. Qxb5 {[%clk 0:02:00]}  Rb8 {[%clk 0:00:56]} 23. Qxc5 {[%clk 0:01:54]}  Rxb2 {[%clk 0:00:55]} 24. Nc6 {[%clk 0:01:51]}  Rxe1+ {[%clk 0:00:39]} 25. Rxe1 {[%clk 0:01:51]}  Bf8 {[%clk 0:00:23]} 26. Qc3 {[%clk 0:01:32]}  Qxd5 {[%clk 0:00:05]} 27. Qxf6 {[%clk 0:01:31]}  Rc2 {[%clk 0:00:02]} 28. Be5 {[%clk 0:01:28]} 1-0


[Site "https://www.chess.com"]

[Event "Titled Tuesday Blitz April 19 Late 2022"]
[White "Skliarov, Viktor"]
[Black "Siddharth, Jagadeesh"]
[WhiteFideId "14106736"]
[BlackFideId "5818320"]
[WhiteElo "2229"]
[BlackElo "2127"]
[Result "0-1"]
[Round "05"]
[TimeControl "180+1"]
[Date "2022.04.19"]
[WhiteClock "0:00:02"]
[BlackClock "0:00:44"]

1. e4 {[%clk 0:03:00]}  e5 {[%clk 0:02:57]} 2. Nc3 {[%clk 0:03:00]}  Nf6 {[%clk 0:02:56]} 3. Bc4 {[%clk 0:03:00]}  Nxe4 {[%clk 0:02:55]} 4. Qh5 {[%clk 0:03:00]}  Nd6 {[%clk 0:02:55]} 5. Bb3 {[%clk 0:03:00]}  Be7 {[%clk 0:02:53]} 6. Qxe5 {[%clk 0:03:00]}  O-O {[%clk 0:02:53]} 7. Nge2 {[%clk 0:03:00]}  Nc6 {[%clk 0:02:53]} 8. Qf4 {[%clk 0:03:00]}  Na5 {[%clk 0:02:53]} 9. Bd5 {[%clk 0:02:59]}  c6 {[%clk 0:02:53]} 10. Bf3 {[%clk 0:02:58]}  b5 {[%clk 0:02:54]} 11. b4 {[%clk 0:02:54]}  Nab7 {[%clk 0:02:48]} 12. Bb2 {[%clk 0:02:51]}  Nc4 {[%clk 0:02:43]} 13. Rb1 {[%clk 0:02:40]}  Bg5 {[%clk 0:02:42]} 14. Qd4 {[%clk 0:02:16]}  Bxd2+ {[%clk 0:02:34]} 15. Kf1 {[%clk 0:02:14]}  Nxb2 {[%clk 0:02:34]} 16. Qxd2 {[%clk 0:02:12]}  Nc4 {[%clk 0:02:34]} 17. Qd4 {[%clk 0:02:10]}  d5 {[%clk 0:02:32]} 18. h4 {[%clk 0:01:57]}  Bf5 {[%clk 0:02:29]} 19. Ng3 {[%clk 0:01:39]}  Bxc2 {[%clk 0:02:12]} 20. Rc1 {[%clk 0:01:38]}  Qf6 {[%clk 0:02:12]} 21. Qxf6 {[%clk 0:01:17]}  Bd3+ {[%clk 0:02:12]} 22. Kg1 {[%clk 0:01:16]}  gxf6 {[%clk 0:02:12]} 23. Nh5 {[%clk 0:01:11]}  Nbd6 {[%clk 0:02:03]} 24. Nxf6+ {[%clk 0:01:07]}  Kg7 {[%clk 0:02:02]} 25. Nh5+ {[%clk 0:01:05]}  Kh8 {[%clk 0:02:02]} 26. Rd1 {[%clk 0:01:01]}  Bc2 {[%clk 0:02:00]} 27. Rc1 {[%clk 0:00:59]}  Bf5 {[%clk 0:01:58]} 28. Ng3 {[%clk 0:00:54]}  Rfe8 {[%clk 0:01:55]} 29. Nxf5 {[%clk 0:00:22]}  Nxf5 {[%clk 0:01:54]} 30. Nxd5 {[%clk 0:00:23]}  cxd5 {[%clk 0:01:54]} 31. Bxd5 {[%clk 0:00:24]}  Rad8 {[%clk 0:01:52]} 32. Bxf7 {[%clk 0:00:24]}  Rf8 {[%clk 0:01:52]} 33. Bxc4 {[%clk 0:00:22]}  bxc4 {[%clk 0:01:52]} 34. Rxc4 {[%clk 0:00:22]}  Nd4 {[%clk 0:01:52]} 35. Rh3 {[%clk 0:00:11]}  Ne2+ {[%clk 0:01:50]} 36. Kh2 {[%clk 0:00:11]}  Rd2 {[%clk 0:01:43]} 37. Rc7 {[%clk 0:00:06]}  Nd4 {[%clk 0:01:20]} 38. Rg3 {[%clk 0:00:05]}  Nf5 {[%clk 0:00:55]} 39. Rf3 {[%clk 0:00:05]}  Rdd8 {[%clk 0:00:55]} 40. Rxa7 {[%clk 0:00:05]}  Nxh4 {[%clk 0:00:55]} 41. Rxf8+ {[%clk 0:00:05]}  Rxf8 {[%clk 0:00:55]} 42. f3 {[%clk 0:00:04]}  Rg8 {[%clk 0:00:51]} 43. g3 {[%clk 0:00:04]}  Nxf3+ {[%clk 0:00:51]} 44. Kg2 {[%clk 0:00:05]}  Nd4 {[%clk 0:00:50]} 45. a4 {[%clk 0:00:05]}  Nf5 {[%clk 0:00:51]} 46. a5 {[%clk 0:00:04]}  Rxg3+ {[%clk 0:00:51]} 47. Kh2 {[%clk 0:00:04]}  Rb3 {[%clk 0:00:52]} 48. Rb7 {[%clk 0:00:04]}  Nd6 {[%clk 0:00:51]} 49. Rb8+ {[%clk 0:00:03]}  Kg7 {[%clk 0:00:51]} 50. a6 {[%clk 0:00:04]}  Ra3 {[%clk 0:00:51]} 51. Rb7+ {[%clk 0:00:02]}  Kg8 {[%clk 0:00:48]} 52. b5 {[%clk 0:00:02]}  Ra5 {[%clk 0:00:45]} 53. Rb8+ {[%clk 0:00:02]}  Kf7 {[%clk 0:00:43]} 54. Rb7+ {[%clk 0:00:03]}  Nxb7 {[%clk 0:00:43]} 55. axb7 {[%clk 0:00:02]}  Rxb5 {[%clk 0:00:44]} 0-1


[Site "https://www.chess.com"]

[Event "Titled Tuesday Blitz April 19 Late 2022"]
[White "Sliwicki, Damian"]
[Black "Bilan, Danila"]
[WhiteFideId "1127128"]
[BlackFideId "24161918"]
[WhiteElo "2084"]
[BlackElo "2164"]
[Result "1-0"]
[Round "05"]
[TimeControl "180+1"]
[Date "2022.04.19"]
[WhiteClock "0:01:26"]
[BlackClock "0:00:02"]

1. e4 {[%clk 0:03:00]}  c6 {[%clk 0:02:56]} 2. Nc3 {[%clk 0:02:50]}  d5 {[%clk 0:02:57]} 3. Nf3 {[%clk 0:02:50]}  Bg4 {[%clk 0:02:57]} 4. h3 {[%clk 0:02:50]}  Bxf3 {[%clk 0:02:57]} 5. Qxf3 {[%clk 0:02:50]}  e6 {[%clk 0:02:57]} 6. d3 {[%clk 0:02:51]}  Nd7 {[%clk 0:02:55]} 7. Qg3 {[%clk 0:02:51]}  g6 {[%clk 0:02:55]} 8. Bd2 {[%clk 0:02:49]}  Bg7 {[%clk 0:02:55]} 9. O-O-O {[%clk 0:02:50]}  Ne7 {[%clk 0:02:43]} 10. f4 {[%clk 0:02:48]}  b5 {[%clk 0:02:39]} 11. f5 {[%clk 0:02:30]}  d4 {[%clk 0:02:02]} 12. fxe6 {[%clk 0:02:18]}  fxe6 {[%clk 0:01:49]} 13. Ne2 {[%clk 0:02:15]}  e5 {[%clk 0:01:12]} 14. Kb1 {[%clk 0:02:12]}  Qb6 {[%clk 0:01:01]} 15. Bg5 {[%clk 0:02:09]}  Qc5 {[%clk 0:00:54]} 16. Nc1 {[%clk 0:02:03]}  O-O-O {[%clk 0:00:45]} 17. Nb3 {[%clk 0:01:50]}  Qd6 {[%clk 0:00:43]} 18. Nxd4 {[%clk 0:01:50]}  Qxd4 {[%clk 0:00:34]} 19. Bxe7 {[%clk 0:01:49]}  Rde8 {[%clk 0:00:35]} 20. Bg5 {[%clk 0:01:47]}  Kb7 {[%clk 0:00:27]} 21. Be2 {[%clk 0:01:44]}  Rhf8 {[%clk 0:00:22]} 22. Be3 {[%clk 0:01:40]}  Qd6 {[%clk 0:00:20]} 23. d4 {[%clk 0:01:41]}  Qb4 {[%clk 0:00:12]} 24. a3 {[%clk 0:01:36]}  Qa4 {[%clk 0:00:06]} 25. d5 {[%clk 0:01:35]}  Nb6 {[%clk 0:00:04]} 26. dxc6+ {[%clk 0:01:35]}  Kxc6 {[%clk 0:00:05]} 27. Bxb6 {[%clk 0:01:32]}  axb6 {[%clk 0:00:04]} 28. Qc3+ {[%clk 0:01:33]}  Kb7 {[%clk 0:00:04]} 29. Rd7+ {[%clk 0:01:33]}  Ka6 {[%clk 0:00:04]} 30. Qc7 {[%clk 0:01:30]}  Ra8 {[%clk 0:00:03]} 31. Qb7+ {[%clk 0:01:29]}  Ka5 {[%clk 0:00:03]} 32. b4+ {[%clk 0:01:30]}  Qxb4+ {[%clk 0:00:03]} 33. axb4+ {[%clk 0:01:31]}  Kxb4 {[%clk 0:00:04]} 34. Qxb6 {[%clk 0:01:28]}  Rfc8 {[%clk 0:00:02]} 35. Qxb5+ {[%clk 0:01:27]}  Kc3 {[%clk 0:00:02]} 36. Qb2# {[%clk 0:01:26]} 1-0


[Site "https://www.chess.com"]

[Event "Titled Tuesday Blitz April 19 Late 2022"]
[White "Spata, German"]
[Black "Koutlas, Nikolaos"]
[WhiteFideId "113026"]
[BlackFideId "25827138"]
[WhiteElo "2238"]
[BlackElo "1645"]
[Result "1-0"]
[Round "05"]
[TimeControl "180+1"]
[Date "2022.04.19"]
[WhiteClock "0:00:20"]
[BlackClock "0:00:47"]

1. d3 {[%clk 0:02:54]}  b6 {[%clk 0:02:59]} 2. e4 {[%clk 0:02:50]}  Bb7 {[%clk 0:02:59]} 3. g3 {[%clk 0:02:50]}  g6 {[%clk 0:02:59]} 4. Bg2 {[%clk 0:02:50]}  Bg7 {[%clk 0:02:59]} 5. Nf3 {[%clk 0:02:50]}  c5 {[%clk 0:02:58]} 6. O-O {[%clk 0:02:50]}  Nc6 {[%clk 0:02:58]} 7. Re1 {[%clk 0:02:50]}  d6 {[%clk 0:02:57]} 8. c3 {[%clk 0:02:50]}  Qd7 {[%clk 0:02:54]} 9. Na3 {[%clk 0:02:48]}  O-O-O {[%clk 0:02:53]} 10. d4 {[%clk 0:02:42]}  e5 {[%clk 0:02:50]} 11. dxe5 {[%clk 0:02:35]}  dxe5 {[%clk 0:02:48]} 12. Qxd7+ {[%clk 0:02:34]}  Kxd7 {[%clk 0:02:48]} 13. Nc4 {[%clk 0:02:18]}  Nge7 {[%clk 0:02:37]} 14. Ng5 {[%clk 0:02:06]}  Rdf8 {[%clk 0:02:16]} 15. Rd1+ {[%clk 0:02:06]}  Kc7 {[%clk 0:02:13]} 16. Nd6 {[%clk 0:01:59]}  Nd8 {[%clk 0:02:12]} 17. Bh3 {[%clk 0:01:51]}  h6 {[%clk 0:01:52]} 18. Nxb7 {[%clk 0:01:31]}  hxg5 {[%clk 0:01:51]} 19. Rd7+ {[%clk 0:01:27]}  Kc6 {[%clk 0:01:43]} 20. Nxd8+ {[%clk 0:01:13]}  Rxd8 {[%clk 0:01:42]} 21. Rxe7 {[%clk 0:00:57]}  Rxh3 {[%clk 0:01:36]} 22. Bxg5 {[%clk 0:00:56]}  Rd7 {[%clk 0:01:34]} 23. Rxd7 {[%clk 0:00:51]}  Kxd7 {[%clk 0:01:34]} 24. Bh4 {[%clk 0:00:42]}  g5 {[%clk 0:01:28]} 25. Kg2 {[%clk 0:00:40]}  Rxh4 {[%clk 0:01:25]} 26. gxh4 {[%clk 0:00:39]}  gxh4 {[%clk 0:01:26]} 27. Kf3 {[%clk 0:00:36]}  Bf6 {[%clk 0:01:22]} 28. Kg4 {[%clk 0:00:35]}  Ke6 {[%clk 0:01:21]} 29. Rd1 {[%clk 0:00:35]}  a5 {[%clk 0:01:20]} 30. a4 {[%clk 0:00:35]}  Be7 {[%clk 0:01:19]} 31. c4 {[%clk 0:00:30]}  Bf6 {[%clk 0:01:18]} 32. h3 {[%clk 0:00:30]}  Be7 {[%clk 0:01:17]} 33. Kh5 {[%clk 0:00:26]}  f5 {[%clk 0:01:17]} 34. f3 {[%clk 0:00:24]}  fxe4 {[%clk 0:00:50]} 35. fxe4 {[%clk 0:00:24]}  Bf8 {[%clk 0:00:47]} 36. Kxh4 {[%clk 0:00:23]}  Bh6 {[%clk 0:00:47]} 37. Kg4 {[%clk 0:00:21]}  Be3 {[%clk 0:00:47]} 38. b3 {[%clk 0:00:20]} 1-0


[Site "https://www.chess.com"]